bitfinex/quotes_BTCUSD_20241023
["timestamp","ask_amount","ask_price","bid_price","bid_amount"]
[1729707156409,0.000822,65528.0,65523.0,0.152617]
[1729707156644,0.000822,65528.0,65524.0,0.01241875]
[1729707156870,0.000822,65528.0,65525.0,0.01241875]
[1729707157099,0.000822,65528.0,65527.0,0.152608]
[1729707157312,0.000822,65528.0,65527.0,0.1633021]
[1729707157523,0.000822,65528.0,65527.0,0.26098213]
[1729707159625,0.000822,65528.0,65527.0,0.4084341]
[1729707159854,0.000822,65528.0,65527.0,0.41798377]
[1729707161227,0.000822,65528.0,65527.0,0.4084341]
[1729707161456,0.000822,65528.0,65527.0,0.31553056]
[1729707163705,0.000822,65528.0,65527.0,0.32053056]
[1729707163969,0.000822,65528.0,65527.0,0.51443056]
[1729707164829,0.000822,65528.0,65527.0,0.51442513]
[1729707165547,0.000822,65528.0,65527.0,0.62442513]
[1729707165820,0.000822,65528.0,65527.0,0.76601537]
[1729707166267,0.000822,65528.0,65527.0,0.77073364]
[1729707166706,0.000822,65528.0,65527.0,0.77269387]
[1729707166924,0.000822,65528.0,65527.0,0.85313364]
[1729707167155,0.000822,65528.0,65527.0,0.84268055]
[1729707167374,0.000822,65528.0,65527.0,0.85509363]
[1729707167592,0.22879979,65545.0,65544.0,0.234969]
[1729707167810,0.22879979,65545.0,65544.0,0.48840752]
[1729707168035,0.23780075,65545.0,65544.0,0.48840752]
[1729707168248,0.30508,65557.0,65549.0,0.152557]
[1729707168476,0.30508,65557.0,65546.0,0.305126]
[1729707168477,0.30508,65557.0,65546.0,0.305129]
[1729707168746,0.305074,65558.0,65547.0,0.15050381]
[1729707168747,0.00900096,65551.0,65547.0,0.15050381]
[1729707168995,0.71292887,65560.0,65549.0,0.305115]
[1729707169235,0.152542,65556.0,65549.0,0.152555]
[1729707169522,0.00900096,65559.0,65553.0,0.152546]
[1729707169785,0.00900096,65559.0,65550.0,0.00305077]
[1729707169786,0.00900096,65559.0,65556.0,0.152539]
[1729707170068,0.305052,65563.0,65549.0,0.15050381]
[1729707170069,0.00900096,65558.0,65557.0,0.0152539]
[1729707170300,0.00900096,65558.0,65549.0,0.15050381]
[1729707170301,0.00900096,65558.0,65550.0,0.305108]
[1729707170525,0.17906408,65559.0,65555.0,0.152543]
[1729707170526,0.33159808,65559.0,65555.0,0.152543]
[1729707170758,0.30505,65563.0,65551.0,0.45560881]
[1729707170759,0.00900096,65558.0,65556.0,0.06081518]
[1729707170980,0.000822,65564.0,65553.0,0.305096]
[1729707171228,0.00900096,65557.0,65554.0,0.152545]
[1729707171453,0.152529,65561.0,65555.0,0.152542]
[1729707171677,0.152529,65561.0,65548.0,0.005]
[1729707171678,0.00900096,65556.0,65542.0,0.015]
[1729707171890,0.000822,65564.0,65552.0,0.22879979]
[1729707172105,0.22879979,65559.0,65553.0,0.45559881]
[1729707172325,0.152535,65559.0,65554.0,0.22861518]
[1729707172751,0.00900096,65558.0,65554.0,0.22861618]
[1729707173172,0.152536,65558.0,65554.0,0.07607118]
[1729707173384,0.00900096,65557.0,65554.0,0.07607118]
[1729707173596,0.00900096,65557.0,65556.0,0.152541]
[1729707173814,0.00900096,65557.0,65556.0,0.1555915]
[1729707174061,0.152531,65561.0,65556.0,0.1555915]
[1729707174282,0.00900096,65557.0,65553.0,0.15050381]
[1729707174516,0.305054,65562.0,65553.0,0.15050381]
[1729707174727,0.152537,65558.0,65553.0,0.15050381]
[1729707175159,0.152539,65557.0,65553.0,0.15050381]
[1729707175475,0.00900096,65557.0,65544.0,0.0824]
[1729707175681,0.00900096,65557.0,65542.0,0.310144]
[1729707175682,0.152571,65543.0,65537.0,0.22879979]
[1729707175899,0.305139,65544.0,65537.0,0.22879979]
[1729707176116,0.17906408,65545.0,65538.0,0.152583]
[1729707176304,0.1617925,65543.0,65539.0,0.07641618]
[1729707176541,0.0092195,65543.0,65539.0,0.07641618]
[1729707176772,0.0092195,65542.0,65540.0,0.152577]
[1729707176988,0.0092195,65542.0,65541.0,0.20599192]
[1729707177196,0.152568,65545.0,65541.0,0.05341592]
[1729707177407,0.15257,65544.0,65539.0,0.07641618]
[1729707177618,0.1617895,65544.0,65539.0,0.22899618]
[1729707177829,0.1617895,65544.0,65539.0,0.22899518]
[1729707178059,0.0092195,65544.0,65541.0,0.152573]
[1729707178324,0.0092195,65544.0,65539.0,0.22899618]
[1729707178527,0.152561,65548.0,65543.0,0.15257]
[1729707178770,0.0092195,65543.0,65542.0,0.152573]
[1729707179003,0.152565,65546.0,65541.0,0.15050381]
[1729707179238,0.17906408,65557.0,65541.0,0.30307781]
[1729707179239,0.0092195,65543.0,65541.0,0.30307781]
[1729707179453,0.152563,65547.0,65542.0,0.24544539]
[1729707179692,0.22879979,65545.0,65542.0,0.09287239]
[1729707179899,0.0092195,65546.0,65537.0,0.305171]
[1729707180114,0.0092195,65546.0,65542.0,0.152573]
[1729707180338,0.0092195,65546.0,65538.0,0.15050381]
[1729707180339,0.22879979,65545.0,65538.0,0.15050381]
[1729707180544,0.0092195,65545.0,65538.0,0.15050381]
[1729707180770,0.152569,65544.0,65539.0,0.15258]
[1729707181037,0.152569,65544.0,65537.0,0.305169]
[1729707181038,0.0092195,65544.0,65541.0,0.152574]
[1729707181245,0.0092195,65544.0,65539.0,0.15258]
[1729707181455,0.17906408,65549.0,65537.0,0.152585]
[1729707181456,0.152573,65543.0,65537.0,0.152585]
[1729707181669,0.0092195,65543.0,65538.0,0.30308581]
[1729707181878,0.0092195,65543.0,65539.0,0.152579]
[1729707182097,0.17906408,65545.0,65538.0,0.02370063]
[1729707182326,0.1617945,65542.0,65538.0,0.02370063]
[1729707182578,0.152571,65543.0,65538.0,0.02370063]
[1729707182793,0.0092195,65541.0,65539.0,0.19322756]
[1729707183006,0.305125,65547.0,65539.0,0.04064756]
[1729707183007,0.00918459,65542.0,65539.0,0.04064756]
[1729707183225,0.00915432,65540.0,65539.0,0.04064756]
[1729707183437,0.305124,65547.0,65540.0,0.305157]
[1729707183664,0.305124,65547.0,65541.0,0.22004182]
[1729707183665,0.152565,65546.0,65541.0,0.22004182]
[1729707183888,0.00915432,65546.0,65543.0,0.152571]
[1729707184109,0.00915432,65546.0,65544.0,0.152567]
[1729707184359,0.53390379,65552.0,65541.0,0.21797063]
[1729707184360,0.22879979,65552.0,65541.0,0.21797063]
[1729707184581,0.152555,65550.0,65543.0,0.305143]
[1729707184809,0.00905624,65551.0,65544.0,0.152569]
[1729707185025,0.61021,65551.0,65543.0,0.152569]
[1729707185232,0.61021,65551.0,65542.0,0.38180159]
[1729707185233,0.152563,65547.0,65542.0,0.22922759]
[1729707185458,0.00905624,65550.0,65543.0,0.27831947]
[1729707185669,0.305105,65551.0,65543.0,0.15257]
[1729707185670,0.15256,65548.0,65543.0,0.15257]
[1729707185873,0.00905624,65549.0,65542.0,0.152573]
[1729707186084,0.152562,65547.0,65543.0,0.0047736]
[1729707186322,0.00905624,65548.0,65544.0,0.0047736]
[1729707186565,0.152561,65548.0,65543.0,0.25607488]
[1729707186774,0.00905624,65547.0,65545.0,0.152565]
[1729707187003,0.00905624,65547.0,65543.0,0.10350388]
[1729707187246,0.22879979,65552.0,65545.0,0.305133]
[1729707187506,0.00905624,65546.0,65544.0,0.152567]
[1729707187707,0.22879979,65552.0,65545.0,0.00477358]
[1729707187922,0.22879979,65552.0,65543.0,0.10350388]
[1729707187923,0.15256,65548.0,65546.0,0.00477358]
[1729707188140,0.15256,65548.0,65543.0,0.25607388]
[1729707188357,0.30511,65550.0,65544.0,0.13340597]
[1729707188573,0.15237633,65548.0,65545.0,0.00477357]
[1729707188815,0.305096,65553.0,65546.0,0.00477357]
[1729707189037,0.152553,65551.0,65547.0,0.15733557]
[1729707189269,0.15255,65552.0,65548.0,0.03367548]
[1729707189497,0.152556,65550.0,65548.0,0.0289019]
[1729707190162,0.152557,65549.0,65548.0,0.0289019]
[1729707190375,0.152561,65548.0,65543.0,0.15257]
[1729707190594,0.152561,65548.0,65544.0,0.15734158]
[1729707190808,0.153383,65548.0,65545.0,0.00477358]
[1729707191032,0.000822,65548.0,65546.0,0.00477358]
[1729707191255,0.000822,65548.0,65547.0,0.00477358]
[1729707191681,0.000822,65548.0,65545.0,0.11469442]
[1729707191887,0.000822,65548.0,65546.0,0.00477372]
[1729707192102,0.000822,65548.0,65547.0,0.00477372]
[1729707193264,0.000822,65548.0,65547.0,0.30783953]
[1729707193508,0.000822,65548.0,65547.0,0.31547703]
[1729707194515,0.000822,65548.0,65547.0,0.32502336]
[1729707194772,0.000822,65548.0,65547.0,0.31547703]
[1729707195025,0.000822,65548.0,65547.0,0.45881204]
[1729707195519,0.000822,65548.0,65547.0,0.46835838]
[1729707200429,0.000822,65548.0,65547.0,0.45881204]
[1729707202178,0.000822,65548.0,65547.0,0.46835839]
[1729707202651,0.000822,65548.0,65547.0,0.47000039]
[1729707202895,0.000822,65548.0,65547.0,0.46045404]
[1729707203149,0.000822,65548.0,65547.0,0.01405322]
[1729707203150,0.33244508,65548.0,65547.0,0.01405322]
[1729707203396,0.33244508,65548.0,65547.0,0.00641572]
[1729707203630,0.34172046,65548.0,65547.0,0.00641572]
[1729707204438,0.34172046,65548.0,65547.0,0.001642]
[1729707205083,0.01009738,65548.0,65547.0,0.001642]
[1729707205332,0.01009738,65548.0,65547.0,0.30948139]
[1729707205579,0.01009738,65548.0,65547.0,0.41986334]
[1729707205834,0.000822,65548.0,65547.0,0.42750036]
[1729707207264,0.000822,65548.0,65547.0,0.43250036]
[1729707207776,0.000822,65548.0,65547.0,0.43249943]
[1729707207990,0.000822,65548.0,65547.0,0.42008976]
[1729707208204,0.000822,65548.0,65547.0,0.43249943]
[1729707208621,0.000822,65548.0,65547.0,0.51199943]
[1729707209933,0.000822,65548.0,65547.0,0.52154479]
[1729707210152,0.000822,65548.0,65547.0,0.63154479]
[1729707210798,0.000822,65548.0,65547.0,0.83004479]
[1729707211011,0.000822,65548.0,65547.0,0.83200502]
[1729707211470,0.000822,65548.0,65547.0,0.8320013]
[1729707211939,0.000822,65548.0,65547.0,0.90055354]
[1729707212421,0.000822,65548.0,65547.0,0.8550013]
[1729707215988,0.000822,65548.0,65547.0,0.92353196]
[1729707216236,0.22879979,65557.0,65556.0,0.44856531]
[1729707216467,0.22879979,65557.0,65556.0,0.75740486]
[1729707216718,0.000822,65564.0,65563.0,0.157525]
[1729707216974,0.000822,65564.0,65563.0,0.31566405]
[1729707217229,0.000822,65564.0,65563.0,0.32043607]
[1729707217468,0.000822,65564.0,65563.0,0.31280083]
[1729707217697,0.000822,65564.0,65563.0,0.43159901]
[1729707219964,0.000822,65564.0,65563.0,0.00477202]
[1729707220195,0.30505,65563.0,65547.0,0.11202395]
[1729707220436,0.152541,65556.0,65555.0,0.22879979]
[1729707220670,0.305073,65558.0,65548.0,0.22879979]
[1729707220887,0.077922,65564.0,65558.0,0.152534]
[1729707221132,0.22879979,65563.0,65555.0,0.15050381]
[1729707221343,0.382967,65564.0,65557.0,0.305078]
[1729707221596,0.382967,65564.0,65558.0,0.43452976]
[1729707221597,0.152527,65563.0,65558.0,0.43452976]
[1729707221834,0.152527,65563.0,65556.0,0.15050381]
[1729707221835,0.30505,65563.0,65556.0,0.15050381]
[1729707222041,0.17906408,65560.0,65554.0,0.22879979]
[1729707222254,0.152539,65557.0,65554.0,0.38134379]
[1729707222463,0.152541,65556.0,65554.0,0.22879979]
[1729707222679,0.152541,65556.0,65552.0,0.152548]
[1729707222886,0.152543,65555.0,65550.0,0.152553]
[1729707223110,0.152543,65555.0,65549.0,0.305115]
[1729707223317,0.152543,65555.0,65552.0,0.15255]
[1729707223533,0.17906408,65561.0,65554.0,0.305089]
[1729707223745,0.38133779,65558.0,65553.0,0.152547]
[1729707223960,0.305064,65560.0,65555.0,0.152543]
[1729707224188,0.152536,65558.0,65555.0,0.152542]
[1729707224430,0.152539,65557.0,65553.0,0.152548]
[1729707224918,0.230446,65564.0,65560.0,0.152531]
[1729707225130,0.22879979,65563.0,65558.0,0.305069]
[1729707225339,0.17906408,65561.0,65556.0,0.305081]
[1729707225540,0.000821,65555.0,65550.0,0.305109]
[1729707225766,0.153364,65555.0,65553.0,0.22879979]
[1729707225979,0.153364,65555.0,65551.0,0.152551]
[1729707226185,0.305909,65555.0,65547.0,0.306765]
[1729707226394,0.305909,65555.0,65549.0,0.152557]
[1729707226395,0.153364,65555.0,65549.0,0.152557]
[1729707226605,0.000821,65555.0,65550.0,0.30511]
[1729707226817,0.153365,65555.0,65551.0,0.152552]
[1729707227006,0.17906408,65553.0,65552.0,0.15255]
[1729707227765,0.1869692,65553.0,65552.0,0.15255]
[1729707228001,0.1869692,65553.0,65547.0,0.306764]
[1729707228286,0.1869692,65553.0,65550.0,0.152555]
[1729707228482,0.1869692,65553.0,65547.0,0.45726781]
[1729707228483,0.15255,65552.0,65548.0,0.152558]
[1729707228694,0.1869692,65553.0,65547.0,0.45726781]
[1729707228907,0.17906408,65553.0,65551.0,0.152552]
[1729707229114,0.00790512,65552.0,65551.0,0.152552]
[1729707229583,0.00790512,65552.0,65549.0,0.152555]
[1729707229822,0.00790512,65552.0,65551.0,0.152552]
[1729707231152,0.00790512,65552.0,65548.0,0.305119]
[1729707231361,0.00790512,65552.0,65551.0,0.152552]
[1729707231591,0.00790512,65552.0,65551.0,0.214024]
[1729707233310,0.00790512,65552.0,65547.0,0.001642]
[1729707233548,0.17906408,65548.0,65547.0,0.154204]
[1729707233975,0.18684852,65548.0,65547.0,0.154204]
[1729707234183,0.00778444,65548.0,65547.0,0.154204]
[1729707234391,0.17906408,65552.0,65547.0,0.1086047]
[1729707234598,0.17906408,65552.0,65550.0,0.152554]
[1729707235129,0.17906408,65552.0,65551.0,0.152552]
[1729707235597,0.17906408,65552.0,65550.0,0.152554]
[1729707235827,0.17906408,65552.0,65547.0,0.001642]
[1729707236059,0.17906408,65552.0,65551.0,0.152552]
[1729707237486,0.17906408,65552.0,65550.0,0.152553]
[1729707237705,0.17906408,65552.0,65549.0,0.305115]
[1729707237959,0.17906408,65552.0,65551.0,0.152552]
[1729707239196,0.000821,65555.0,65548.0,0.001642]
[1729707239460,0.000821,65555.0,65554.0,0.152545]
[1729707239695,0.000821,65555.0,65554.0,0.30304881]
[1729707239926,0.000821,65555.0,65554.0,0.43366619]
[1729707240668,0.000821,65555.0,65554.0,0.43843861]
[1729707241346,0.000821,65555.0,65554.0,0.43366619]
[1729707241769,0.000821,65555.0,65554.0,0.43843868]
[1729707242876,0.000821,65555.0,65554.0,0.43843866]
[1729707243090,0.000821,65555.0,65554.0,0.43366619]
[1729707243746,0.00867584,65555.0,65554.0,0.28584311]
[1729707243994,0.17988508,65555.0,65551.0,0.152552]
[1729707244228,0.152547,65554.0,65548.0,0.23044179]
[1729707244446,0.18773992,65555.0,65549.0,0.03105199]
[1729707244661,0.18773992,65555.0,65548.0,0.001642]
[1729707244662,0.17906408,65551.0,65548.0,0.001642]
[1729707244885,0.17906408,65551.0,65548.0,0.1542]
[1729707245111,0.17906408,65551.0,65548.0,0.001642]
[1729707245338,0.00785484,65550.0,65548.0,0.001642]
[1729707245564,0.00785484,65550.0,65548.0,0.0782535]
[1729707245778,0.00785484,65550.0,65548.0,0.154201]
[1729707245991,0.00785484,65550.0,65548.0,0.001642]
[1729707246210,0.15255,65553.0,65548.0,0.001642]
[1729707246439,0.00785484,65552.0,65548.0,0.001642]
[1729707246680,0.00785484,65552.0,65550.0,0.152555]
[1729707246879,0.00785484,65552.0,65550.0,0.09948898]
[1729707247096,0.17988508,65555.0,65550.0,0.25204198]
[1729707247305,0.17988508,65555.0,65550.0,0.25204398]
[1729707247306,0.00785484,65551.0,65550.0,0.25204398]
[1729707247598,0.000821,65555.0,65551.0,0.152552]
[1729707247849,0.000821,65555.0,65550.0,0.25204398]
[1729707248058,0.00785484,65554.0,65551.0,0.10943748]
[1729707248318,0.00785484,65554.0,65551.0,0.26198848]
[1729707248763,0.00785484,65554.0,65551.0,0.10943748]
[1729707249607,0.16040084,65554.0,65551.0,0.10943748]
[1729707249821,0.00785484,65554.0,65548.0,0.001642]
[1729707250035,0.17906408,65551.0,65548.0,0.001642]
[1729707250721,0.00785484,65550.0,65549.0,0.152557]
[1729707250949,0.00785484,65550.0,65548.0,0.001642]
[1729707252042,0.00785484,65550.0,65548.0,0.154201]
[1729707252277,0.00785484,65550.0,65548.0,0.001642]
[1729707252478,0.152557,65549.0,65548.0,0.001642]
[1729707252691,0.00785484,65550.0,65548.0,0.001642]
[1729707252923,0.48417008,65551.0,65548.0,0.001642]
[1729707253139,0.00785484,65549.0,65548.0,0.001642]
[1729707253356,0.152557,65549.0,65548.0,0.001642]
[1729707253568,0.16033111,65549.0,65548.0,0.001642]
[1729707253781,0.00777411,65549.0,65548.0,0.001642]
[1729707254048,0.16033111,65549.0,65548.0,0.001642]
[1729707254540,0.48616408,65549.0,65548.0,0.001642]
[1729707254781,0.52926074,65549.0,65548.0,0.001642]
[1729707254983,0.55185537,65549.0,65548.0,0.001642]
[1729707255205,0.52922395,65549.0,65548.0,0.001642]
[1729707255419,0.20747147,65549.0,65548.0,0.001642]
[1729707255866,0.20956408,65549.0,65548.0,0.001642]
[1729707256085,0.20747147,65549.0,65548.0,0.001642]
[1729707256977,0.20956408,65549.0,65548.0,0.001642]
[1729707257198,0.20747147,65549.0,65548.0,0.001642]
[1729707257680,0.20956408,65549.0,65548.0,0.001642]
[1729707257933,0.20747147,65549.0,65548.0,0.001642]
[1729707258916,0.20956408,65549.0,65548.0,0.001642]
[1729707261358,0.20747147,65549.0,65548.0,0.001642]
[1729707261659,0.20956408,65549.0,65548.0,0.001642]
[1729707264751,0.16033111,65549.0,65548.0,0.001642]
[1729707265271,0.305919,65553.0,65549.0,0.152555]
[1729707265272,0.000821,65553.0,65549.0,0.152555]
[1729707265526,0.22879979,65550.0,65549.0,0.22199278]
[1729707265772,0.15337,65553.0,65549.0,0.06943678]
[1729707266025,0.17906408,65552.0,65548.0,0.15214581]
[1729707266255,0.33161408,65552.0,65548.0,0.15214581]
[1729707266452,0.17906408,65552.0,65548.0,0.30470381]
[1729707266905,0.17906408,65552.0,65548.0,0.15214581]
[1729707267115,0.17906408,65552.0,65548.0,0.30470281]
[1729707267326,0.17906408,65552.0,65549.0,0.09214355]
[1729707268001,0.305105,65551.0,65548.0,0.001642]
[1729707268224,0.152557,65549.0,65548.0,0.001642]
[1729707268444,0.15464961,65549.0,65548.0,0.001642]
[1729707268891,0.24695207,65549.0,65548.0,0.001642]
[1729707269815,0.20174008,65549.0,65548.0,0.001642]
[1729707273014,0.26955806,65549.0,65548.0,0.001642]
[1729707273258,0.20174008,65549.0,65548.0,0.001642]
[1729707273510,0.20256108,65549.0,65548.0,0.001642]
[1729707274803,0.27037906,65549.0,65548.0,0.001642]
[1729707275218,0.27033513,65549.0,65548.0,0.001642]
[1729707275855,0.20256108,65549.0,65548.0,0.001642]
[1729707277110,0.27032702,65549.0,65548.0,0.001642]
[1729707277866,0.45883083,65549.0,65548.0,0.001642]
[1729707278100,0.67667228,65549.0,65548.0,0.001642]
[1729707278328,0.75837228,65549.0,65548.0,0.001642]
[1729707278538,0.93743636,65549.0,65548.0,0.001642]
[1729707278783,0.75837228,65549.0,65548.0,0.001642]
[1729707281343,0.76102565,65549.0,65548.0,0.001642]
[1729707281560,0.76579954,65549.0,65548.0,0.001642]
[1729707281785,0.75879954,65549.0,65548.0,0.001642]
[1729707282013,0.76379954,65549.0,65548.0,0.001642]
[1729707282893,0.78502309,65549.0,65548.0,0.001642]
[1729707283100,0.78702309,65549.0,65548.0,0.001642]
[1729707283517,0.77702309,65549.0,65548.0,0.001642]
[1729707283943,0.86525941,65549.0,65548.0,0.001642]
[1729707284376,0.86725941,65549.0,65548.0,0.001642]
[1729707284856,0.77502309,65549.0,65548.0,0.001642]
[1729707285059,0.86525941,65549.0,65548.0,0.001642]
[1729707285265,0.86724924,65549.0,65548.0,0.001642]
[1729707285476,0.77702309,65549.0,65548.0,0.001642]
[1729707285686,0.77502309,65549.0,65548.0,0.001642]
[1729707286740,0.77702309,65549.0,65548.0,0.001642]
[1729707287851,0.77502309,65549.0,65548.0,0.001642]
[1729707288055,0.77702309,65549.0,65548.0,0.001642]
[1729707288510,0.86526065,65549.0,65548.0,0.001642]
[1729707288954,0.7602492,65549.0,65548.0,0.001642]
[1729707289822,0.07178839,65549.0,65548.0,0.001642]
[1729707290038,0.05000408,65549.0,65548.0,0.001642]
[1729707290250,0.20256108,65549.0,65548.0,0.001642]
[1729707290470,0.15547061,65549.0,65548.0,0.001642]
[1729707293702,0.20252541,65549.0,65548.0,0.001642]
[1729707294564,0.66496616,65549.0,65548.0,0.001642]
[1729707294814,0.68543279,65549.0,65548.0,0.001642]
[1729707295046,0.68543279,65549.0,65547.0,0.001642]
[1729707295047,0.292559,65548.0,65547.0,0.001642]
[1729707295256,0.292559,65548.0,65532.0,0.22879979]
[1729707295257,0.33165808,65533.0,65532.0,0.22879979]
[1729707295949,0.33165808,65533.0,65523.0,0.22879979]
[1729707295950,0.152604,65529.0,65523.0,0.22879979]
[1729707296168,0.15469661,65529.0,65523.0,0.22879979]
[1729707296590,0.33376069,65529.0,65523.0,0.22879979]
[1729707296817,0.33166808,65529.0,65523.0,0.22879979]
[1729707297665,0.33166808,65529.0,65519.0,0.0764]
[1729707297875,0.33166808,65529.0,65520.0,0.22879979]
[1729707300388,0.33166808,65529.0,65512.0,0.305287]
[1729707300389,0.33166808,65529.0,65510.0,0.1966]
[1729707300611,0.33166808,65529.0,65512.0,0.0764]
[1729707300612,0.61017189,65529.0,65512.0,0.0764]
[1729707300815,0.61017189,65529.0,65505.0,0.22879979]
[1729707300816,0.66919758,65529.0,65505.0,0.22879979]
[1729707301034,0.66719758,65529.0,65506.0,0.0831]
[1729707301255,0.67207809,65529.0,65506.0,0.0831]
[1729707301531,0.66719758,65529.0,65506.0,0.0831]
[1729707302000,0.48369377,65529.0,65520.0,0.22879979]
[1729707302231,0.48369377,65529.0,65521.0,0.22879979]
[1729707302963,0.54635352,65529.0,65521.0,0.22879979]
[1729707303193,0.48369377,65529.0,65521.0,0.22879979]
[1729707303704,0.52880823,65529.0,65521.0,0.22879979]
[1729707303956,0.52880823,65529.0,65520.0,0.0818]
[1729707304200,0.47869377,65529.0,65522.0,0.22879979]
[1729707304447,0.04702569,65529.0,65522.0,0.22879979]
[1729707304691,0.15469661,65529.0,65522.0,0.22879979]
[1729707305131,0.00209261,65529.0,65522.0,0.22879979]
[1729707305373,0.152604,65529.0,65522.0,0.22879979]
[1729707305628,0.152604,65529.0,65520.0,0.0818]
[1729707306108,0.00209261,65531.0,65520.0,0.0818]
[1729707306343,0.22879979,65534.0,65521.0,0.22879979]
[1729707306344,0.00209261,65532.0,65521.0,0.22879979]
[1729707306820,0.49540049,65539.0,65521.0,0.22879979]
[1729707306821,0.22879979,65533.0,65521.0,0.17906408]
[1729707307086,0.22879979,65533.0,65520.0,0.0818]
[1729707307087,0.152604,65529.0,65520.0,0.0818]
[1729707307347,0.305171,65537.0,65522.0,0.22879979]
[1729707307615,0.152603,65530.0,65522.0,0.22879979]
[1729707307856,0.152604,65529.0,65522.0,0.22879979]
[1729707308128,0.40786387,65538.0,65522.0,0.22879979]
[1729707308129,0.00209261,65530.0,65522.0,0.22879979]
[1729707308381,0.30727761,65534.0,65522.0,0.22879979]
[1729707308613,0.75814833,65538.0,65522.0,0.22879979]
[1729707308614,0.305175,65536.0,65523.0,0.00305219]
[1729707308852,0.152597,65532.0,65523.0,0.00305219]
[1729707309104,0.152591,65535.0,65523.0,0.30828619]
[1729707309355,0.30726761,65537.0,65522.0,0.22879979]
[1729707309588,0.30726761,65537.0,65523.0,0.00305205]
[1729707309815,0.152594,65534.0,65523.0,0.15566905]
[1729707310083,0.00209261,65534.0,65523.0,0.00305205]
[1729707310320,0.152601,65531.0,65522.0,0.22879979]
[1729707310545,0.152601,65531.0,65521.0,0.22879979]
[1729707310546,0.152604,65529.0,65521.0,0.22879979]
[1729707311260,0.30519,65533.0,65521.0,0.22879979]
[1729707311524,0.152603,65530.0,65521.0,0.22879979]
[1729707311758,0.00209261,65532.0,65522.0,0.152619]
[1729707311759,0.15468961,65532.0,65522.0,0.152619]
[1729707311973,0.1526,65531.0,65521.0,0.22879979]
[1729707312450,0.00209261,65532.0,65521.0,0.22879979]
[1729707312895,0.152604,65529.0,65520.0,0.0818]
[1729707313128,0.33376069,65529.0,65520.0,0.31059979]
[1729707313352,0.152604,65529.0,65520.0,0.31059979]
[1729707313567,0.15469661,65529.0,65520.0,0.31059979]
[1729707316498,0.30519,65533.0,65520.0,0.46322279]
[1729707316723,0.152604,65529.0,65520.0,0.31059979]
[1729707317722,0.152604,65529.0,65520.0,0.0818]
[1729707317755,0.152604,65529.0,65521.0,0.22879979]
[1729707317965,0.152604,65529.0,65515.0,0.1954]
[1729707318166,0.152604,65529.0,65513.0,0.31129979]
[1729707318369,0.19964605,65529.0,65513.0,0.31129979]
[1729707318964,0.24480549,65529.0,65513.0,0.31129979]
[1729707319390,0.19964605,65529.0,65513.0,0.31129979]
[1729707320595,0.19964605,65529.0,65520.0,0.22879979]
[1729707321220,0.37871013,65529.0,65520.0,0.22879979]
[1729707321380,0.33166808,65529.0,65520.0,0.22879979]
[1729707322213,0.37683181,65529.0,65513.0,0.31129979]
[1729707322431,0.94571198,65529.0,65513.0,0.22879979]
[1729707322787,0.94771198,65529.0,65513.0,0.22879979]
[1729707323728,0.94571198,65529.0,65513.0,0.22879979]
[1729707324802,0.94771198,65529.0,65513.0,0.22879979]
[1729707325027,1.0606482,65529.0,65513.0,0.22879979]
[1729707325278,0.94771198,65529.0,65513.0,0.22879979]
[1729707325657,0.169606,65528.0,65513.0,0.22879979]
[1729707325872,0.35470308,65514.0,65513.0,0.22879979]
[1729707326026,0.55224698,65514.0,65513.0,0.22879979]
[1729707326233,0.55224698,65514.0,65507.0,0.001644]
[1729707326234,0.152653,65508.0,65507.0,0.001644]
[1729707326493,0.33380969,65508.0,65507.0,0.001644]
[1729707326680,0.33171708,65508.0,65507.0,0.001644]
[1729707327221,0.33437173,65508.0,65507.0,0.001644]
[1729707327659,0.37877598,65508.0,65507.0,0.001644]
[1729707328322,0.61022089,65508.0,65507.0,0.001644]
[1729707328543,0.7124585,65508.0,65507.0,0.001644]
[1729707328791,0.71240482,65508.0,65507.0,0.001644]
[1729707329019,0.66727665,65508.0,65507.0,0.001644]
[1729707329245,0.7349689,65508.0,65507.0,0.001644]
[1729707329454,0.66727665,65508.0,65507.0,0.001644]
[1729707329674,0.8124689,65508.0,65507.0,0.001644]
[1729707329884,0.94137665,65508.0,65507.0,0.001644]
[1729707330105,0.93937665,65508.0,65507.0,0.001644]
[1729707330345,1.02963299,65508.0,65507.0,0.001644]
[1729707330563,1.03163299,65508.0,65507.0,0.001644]
[1729707330986,1.02963299,65508.0,65507.0,0.001644]
[1729707331198,1.00901108,65508.0,65507.0,0.001644]
[1729707331419,1.00701108,65508.0,65507.0,0.001644]
[1729707331858,1.00901108,65508.0,65507.0,0.001644]
[1729707332063,0.192676,65498.0,65489.0,0.000863]
[1729707332292,0.76150075,65498.0,65494.0,0.22879979]
[1729707332509,0.66929965,65498.0,65489.0,0.000863]
[1729707332737,0.558495,65490.0,65489.0,0.000863]
[1729707332982,0.558495,65490.0,65486.0,0.22879979]
[1729707332983,0.290702,65487.0,65486.0,0.22879979]
[1729707333205,0.152723,65478.0,65474.0,0.005]
[1729707333411,0.33387969,65478.0,65474.0,0.005]
[1729707333619,0.15273,65475.0,65474.0,0.005]
[1729707333826,0.00209261,65475.0,65474.0,0.005]
[1729707334035,0.15273,65475.0,65474.0,0.005]
[1729707334245,0.15482261,65475.0,65474.0,0.005]
[1729707334724,0.00209261,65475.0,65474.0,0.005]
[1729707334923,0.15482261,65475.0,65474.0,0.005]
[1729707335136,0.00209261,65475.0,65474.0,0.005]
[1729707335333,0.00209261,65476.0,65474.0,0.005]
[1729707335576,0.15482061,65476.0,65474.0,0.005]
[1729707335806,0.15273,65475.0,65474.0,0.005]
[1729707336322,0.00209261,65476.0,65474.0,0.005]
[1729707336559,0.00209261,65477.0,65474.0,0.005]
[1729707337032,0.152728,65476.0,65474.0,0.005]
[1729707337274,0.00209261,65477.0,65474.0,0.005]
[1729707337509,0.8177076,65487.0,65475.0,0.076]
[1729707337510,0.152705,65486.0,65475.0,0.076]
[1729707337756,0.22879979,65480.0,65475.0,0.076]
[1729707337999,0.00209261,65485.0,65475.0,0.076]
[1729707338717,0.152707,65485.0,65475.0,0.228729]
[1729707338957,0.15480161,65484.0,65475.0,0.076]
[1729707339185,0.152711,65483.0,65475.0,0.076]
[1729707339422,0.00209261,65482.0,65475.0,0.076]
[1729707339648,0.22879979,65480.0,65475.0,0.076]
[1729707339881,0.00209261,65482.0,65475.0,0.076]